[Event "*** Titled Tuesday Blitz"]
[Site "Chess.com"]
[Date "2020.10.20"]
[Round "2"]
[White "ZverevLev"]
[Black "Oglob71"]
[Result "0-1"]
[WhiteElo "2279"]
[BlackElo "2457"]
[TimeControl "180+1"]
[EndTime "10:15:52 PDT"]
[Termination "Oglob71 won by resignation"]

1. e4 {[%clk 0:03:00.9]} 1... c5 {[%clk 0:02:58.6]} 2. Nf3 {[%clk 0:02:59]} 2...
e6 {[%clk 0:02:58.9]} 3. d4 {[%clk 0:02:58.3]} 3... cxd4 {[%clk 0:02:59.3]} 4.
Nxd4 {[%clk 0:02:59.1]} 4... a6 {[%clk 0:02:59.9]} 5. Bd3 {[%clk 0:02:57.7]}
5... Qb6 {[%clk 0:02:59.8]} 6. Be3 {[%clk 0:02:55.9]} 6... Qxb2 {[%clk
0:02:58.6]} 7. Nd2 {[%clk 0:02:55.2]} 7... Qc3 {[%clk 0:02:58.8]} 8. O-O {[%clk
0:02:53.6]} 8... Qc7 {[%clk 0:02:59.4]} 9. e5 {[%clk 0:02:51.9]} 9... d6 {[%clk
0:02:59.1]} 10. exd6 {[%clk 0:02:48.1]} 10... Bxd6 {[%clk 0:02:58.3]} 11. Ne4
{[%clk 0:02:48.6]} 11... Nf6 {[%clk 0:02:55.4]} 12. Nxf6+ {[%clk 0:02:39]} 12...
gxf6 {[%clk 0:02:54.8]} 13. f4 {[%clk 0:02:38.9]} 13... Nc6 {[%clk 0:02:50]} 14.
Nxc6 {[%clk 0:02:29.4]} 14... Qxc6 {[%clk 0:02:49.4]} 15. a4 {[%clk 0:02:25.9]}
15... Bd7 {[%clk 0:02:46.1]} 16. Qh5 {[%clk 0:02:20.8]} 16... f5 {[%clk
0:02:44.6]} 17. g3 {[%clk 0:02:12.2]} 17... Bc5 {[%clk 0:02:44.6]} 18. Qe2
{[%clk 0:02:07.5]} 18... Rc8 {[%clk 0:02:39.8]} 19. Bxf5 {[%clk 0:02:02.7]}
19... Qb6 {[%clk 0:02:29.8]} 20. Rae1 {[%clk 0:01:55.8]} 20... Bxe3+ {[%clk
0:02:18.3]} 21. Qxe3 {[%clk 0:01:56.2]} 21... Qxe3+ {[%clk 0:02:18.3]} 22. Rxe3
{[%clk 0:01:57.1]} 22... Bxa4 {[%clk 0:02:18.4]} 23. Rfe1 {[%clk 0:01:55.9]}
23... O-O {[%clk 0:02:14.5]} 24. Bg4 {[%clk 0:01:51.7]} 24... Bxc2 {[%clk
0:02:13.1]} 25. Bf3 {[%clk 0:01:50.9]} 25... Rc7 {[%clk 0:02:10.4]} 26. g4
{[%clk 0:01:46.7]} 26... b5 {[%clk 0:02:07.7]} 27. Be2 {[%clk 0:01:33.4]} 27...
Rfc8 {[%clk 0:02:03.7]} 28. f5 {[%clk 0:01:30.2]} 28... exf5 {[%clk 0:02:04]}
29. gxf5 {[%clk 0:01:31.1]} 29... Bxf5 {[%clk 0:02:04.2]} 30. Rg3+ {[%clk
0:01:31.4]} 30... Bg6 {[%clk 0:02:04]} 31. h4 {[%clk 0:01:31]} 31... Rc3 {[%clk
0:02:01]} 32. Rg2 {[%clk 0:01:28]} 32... Rc1 {[%clk 0:01:46.6]} 33. Rxc1 {[%clk
0:01:22.2]} 33... Rxc1+ {[%clk 0:01:46.2]} 34. Kh2 {[%clk 0:01:22.7]} 34... Kf8
{[%clk 0:01:43.2]} 35. h5 {[%clk 0:01:22.1]} 35... Bf5 {[%clk 0:01:41]} 36. Rg5
{[%clk 0:01:20.1]} 36... Rc2 {[%clk 0:01:37.2]} 37. Rxf5 {[%clk 0:01:18.1]}
37... Rxe2+ {[%clk 0:01:36.7]} 38. Kg3 {[%clk 0:01:19]} 38... Re6 {[%clk
0:01:36.7]} 39. Kg4 {[%clk 0:01:18]} 39... Rb6 {[%clk 0:01:37.1]} 40. Kg5 {[%clk
0:01:12.8]} 40... b4 {[%clk 0:01:37.2]} 0-1

[Event "*** Titled Tuesday Blitz"]
[Site "Chess.com"]
[Date "2020.10.20"]
[Round "2"]
[White "Khnykin_Nikolay"]
[Black "MalyDominator"]
[Result "0-1"]
[WhiteElo "2055"]
[BlackElo "2375"]
[TimeControl "180+1"]
[EndTime "10:15:52 PDT"]
[Termination "MalyDominator won by resignation"]

1. e4 {[%clk 0:02:59.4]} 1... c5 {[%clk 0:02:57.7]} 2. c3 {[%clk 0:02:55.6]}
2... Nf6 {[%clk 0:02:57]} 3. f3 {[%clk 0:02:48.1]} 3... d5 {[%clk 0:02:51.2]} 4.
exd5 {[%clk 0:02:44.8]} 4... Nxd5 {[%clk 0:02:51]} 5. d4 {[%clk 0:02:45.7]} 5...
cxd4 {[%clk 0:02:46.9]} 6. cxd4 {[%clk 0:02:46.6]} 6... Nc6 {[%clk 0:02:46.1]}
7. Bc4 {[%clk 0:02:42]} 7... e6 {[%clk 0:02:30.1]} 8. Ne2 {[%clk 0:02:40.9]}
8... Be7 {[%clk 0:02:30]} 9. O-O {[%clk 0:02:39.8]} 9... O-O {[%clk 0:02:30.1]}
10. f4 {[%clk 0:02:37.5]} 10... b6 {[%clk 0:02:27.3]} 11. Kh1 {[%clk 0:02:33.1]}
11... Bb7 {[%clk 0:02:24.7]} 12. Nbc3 {[%clk 0:02:33]} 12... Na5 {[%clk
0:02:24.1]} 13. Bd3 {[%clk 0:02:30.9]} 13... Rc8 {[%clk 0:02:21.5]} 14. a3
{[%clk 0:02:24.9]} 14... Nc4 {[%clk 0:02:21.1]} 15. Bc2 {[%clk 0:02:20.2]} 15...
Nce3 {[%clk 0:02:08.9]} 16. Qd3 {[%clk 0:02:00.4]} 16... Nxc2 {[%clk 0:01:54.9]}
17. Qxc2 {[%clk 0:01:59.1]} 17... Bf6 {[%clk 0:01:53.8]} 18. Qd3 {[%clk
0:01:57.8]} 18... Qc7 {[%clk 0:01:46.7]} 19. Bd2 {[%clk 0:01:55.4]} 19... Qc6
{[%clk 0:01:45.9]} 20. Qg3 {[%clk 0:01:53.9]} 20... Ba6 {[%clk 0:01:36.9]} 21.
Ne4 {[%clk 0:01:49]} 21... Bxe2 {[%clk 0:01:33.3]} 22. Rfe1 {[%clk 0:01:47.1]}
22... Bh5 {[%clk 0:01:28.6]} 23. Nxf6+ {[%clk 0:01:39.8]} 23... Nxf6 {[%clk
0:01:28.2]} 24. Bc3 {[%clk 0:01:38.7]} 24... Bg6 {[%clk 0:01:25.4]} 25. h4
{[%clk 0:01:35.6]} 25... Nd5 {[%clk 0:01:21.9]} 26. Bd2 {[%clk 0:01:34.8]} 26...
Qc2 {[%clk 0:01:19.5]} 27. Red1 {[%clk 0:01:32.9]} 27... Bh5 {[%clk 0:01:15.3]}
28. Rac1 {[%clk 0:01:28.1]} 28... Qxb2 {[%clk 0:01:06.9]} 29. Rxc8 {[%clk
0:01:26.8]} 29... Rxc8 {[%clk 0:01:06.7]} 0-1

[Event "*** Titled Tuesday Blitz"]
[Site "Chess.com"]
[Date "2020.10.20"]
[Round "2"]
[White "Nastya_Rakhmangulova"]
[Black "anon569"]
[Result "1-0"]
[WhiteElo "2454"]
[BlackElo "2271"]
[TimeControl "180+1"]
[EndTime "10:15:53 PDT"]
[Termination "Nastya_Rakhmangulova won by resignation"]

1. e4 {[%clk 0:03:00.9]} 1... c5 {[%clk 0:02:59.5]} 2. Nf3 {[%clk 0:03:00.7]}
2... d6 {[%clk 0:03:00]} 3. c3 {[%clk 0:03:00.8]} 3... Nf6 {[%clk 0:02:56.4]} 4.
Be2 {[%clk 0:03:00.8]} 4... Nc6 {[%clk 0:02:49.8]} 5. d4 {[%clk 0:03:00.4]} 5...
cxd4 {[%clk 0:02:43.6]} 6. cxd4 {[%clk 0:03:01.3]} 6... Nxe4 {[%clk 0:02:43.4]}
7. d5 {[%clk 0:03:01.4]} 7... Qa5+ {[%clk 0:02:42.6]} 8. Nc3 {[%clk 0:03:01.5]}
8... Nxc3 {[%clk 0:02:39.4]} 9. bxc3 {[%clk 0:03:02.4]} 9... Ne5 {[%clk
0:02:36.5]} 10. O-O {[%clk 0:03:02.3]} 10... g6 {[%clk 0:01:17.2]} 11. Nxe5
{[%clk 0:03:00.8]} 11... dxe5 {[%clk 0:01:17.1]} 12. d6 {[%clk 0:03:01.5]} 12...
exd6 {[%clk 0:01:15.5]} 13. Rb1 {[%clk 0:03:00.9]} 13... Qc7 {[%clk 0:01:11.2]}
14. f4 {[%clk 0:02:53.6]} 14... Be7 {[%clk 0:00:36.1]} 15. fxe5 {[%clk
0:02:52.4]} 15... dxe5 {[%clk 0:00:35.7]} 16. Bh6 {[%clk 0:02:53]} 16... Bd7
{[%clk 0:00:20.4]} 17. Qb3 {[%clk 0:02:52.9]} 17... Bc5+ {[%clk 0:00:15.3]} 18.
Kh1 {[%clk 0:02:52.6]} 18... Bc6 {[%clk 0:00:15.7]} 19. Bg7 {[%clk 0:02:45.6]}
19... Rg8 {[%clk 0:00:15.1]} 20. Bf6 {[%clk 0:02:45.9]} 20... Be7 {[%clk
0:00:13.2]} 21. Bxe5 {[%clk 0:02:16.6]} 21... Qxe5 {[%clk 0:00:12.1]} 22. Qxf7+
{[%clk 0:02:16.5]} 22... Kd7 {[%clk 0:00:11.4]} 23. Bg4+ {[%clk 0:02:16.4]}
23... Kc7 {[%clk 0:00:11]} 24. Rbe1 {[%clk 0:02:16.1]} 24... Rgf8 {[%clk
0:00:06.6]} 25. Rxe5 {[%clk 0:02:12.5]} 25... Rxf7 {[%clk 0:00:05.5]} 26. Rxf7
{[%clk 0:02:12.5]} 1-0

[Event "*** Titled Tuesday Blitz"]
[Site "Chess.com"]
[Date "2020.10.20"]
[Round "2"]
[White "PSvidler"]
[Black "stolencandy13"]
[Result "1/2-1/2"]
[WhiteElo "2881"]
[BlackElo "2457"]
[TimeControl "180+1"]
[EndTime "10:15:54 PDT"]
[Termination "Game drawn by agreement"]

1. e4 {[%clk 0:03:00.9]} 1... c6 {[%clk 0:02:57.7]} 2. Nf3 {[%clk 0:02:50]} 2...
d5 {[%clk 0:02:54.6]} 3. d3 {[%clk 0:02:49.2]} 3... Bg4 {[%clk 0:02:47]} 4. Nbd2
{[%clk 0:02:47.7]} 4... Nd7 {[%clk 0:02:36.4]} 5. h3 {[%clk 0:02:46.8]} 5... Bh5
{[%clk 0:02:34]} 6. c3 {[%clk 0:02:43.3]} 6... e5 {[%clk 0:02:32.2]} 7. exd5
{[%clk 0:02:27.7]} 7... cxd5 {[%clk 0:02:32.1]} 8. Qb3 {[%clk 0:02:28.4]} 8...
Nc5 {[%clk 0:02:09.7]} 9. Qb5+ {[%clk 0:02:27.6]} 9... Qd7 {[%clk 0:02:10]} 10.
d4 {[%clk 0:02:27.5]} 10... exd4 {[%clk 0:01:56.4]} 11. Ne5 {[%clk 0:02:27.1]}
11... Qxb5 {[%clk 0:01:46.3]} 12. Bxb5+ {[%clk 0:02:28]} 12... Kd8 {[%clk
0:01:43.3]} 13. g4 {[%clk 0:02:17.8]} 13... Bg6 {[%clk 0:01:42.6]} 14. f4 {[%clk
0:02:12.1]} 14... dxc3 {[%clk 0:01:14]} 15. bxc3 {[%clk 0:02:07.8]} 15... Bd6
{[%clk 0:01:02.5]} 16. Ndf3 {[%clk 0:02:01.4]} 16... f6 {[%clk 0:00:53.6]} 17.
Nxg6 {[%clk 0:02:01]} 17... hxg6 {[%clk 0:00:54.5]} 18. Be3 {[%clk 0:01:56.9]}
18... a6 {[%clk 0:00:50.3]} 19. O-O-O {[%clk 0:01:56.2]} 19... Ne7 {[%clk
0:00:44.7]} 20. Be2 {[%clk 0:01:53.2]} 20... Ne4 {[%clk 0:00:35.3]} 21. Kb2
{[%clk 0:01:51.2]} 21... Ng3 {[%clk 0:00:23.2]} 22. Rhe1 {[%clk 0:01:50.5]}
22... Nxe2 {[%clk 0:00:23.1]} 23. Rxe2 {[%clk 0:01:51.4]} 23... Rxh3 {[%clk
0:00:18.1]} 24. Nd4 {[%clk 0:01:51.3]} 24... Rc8 {[%clk 0:00:17.2]} 1/2-1/2

[Event "*** Titled Tuesday Blitz"]
[Site "Chess.com"]
[Date "2020.10.20"]
[Round "2"]
[White "esrosenberg"]
[Black "fm_magua"]
[Result "0-1"]
[WhiteElo "2280"]
[BlackElo "2586"]
[TimeControl "180+1"]
[EndTime "10:15:59 PDT"]
[Termination "fm_magua won on time"]

1. Nf3 {[%clk 0:03:00.9]} 1... c5 {[%clk 0:02:59.3]} 2. e4 {[%clk 0:03:00.1]}
2... Nc6 {[%clk 0:03:00]} 3. Bb5 {[%clk 0:02:59.5]} 3... g6 {[%clk 0:03:00.4]}
4. Bxc6 {[%clk 0:02:58.9]} 4... dxc6 {[%clk 0:03:01.3]} 5. h3 {[%clk 0:02:56.5]}
5... e5 {[%clk 0:03:01.2]} 6. O-O {[%clk 0:02:54.6]} 6... f6 {[%clk 0:03:01.7]}
7. d3 {[%clk 0:02:52.1]} 7... Be6 {[%clk 0:03:02]} 8. b3 {[%clk 0:02:50.9]} 8...
b6 {[%clk 0:03:01.8]} 9. a4 {[%clk 0:02:48.9]} 9... a5 {[%clk 0:03:02.1]} 10.
Nbd2 {[%clk 0:02:35]} 10... h5 {[%clk 0:03:01.5]} 11. Nc4 {[%clk 0:02:31]} 11...
Ra7 {[%clk 0:03:01.6]} 12. Nfd2 {[%clk 0:02:25.7]} 12... g5 {[%clk 0:03:01.1]}
13. Ne3 {[%clk 0:02:18.2]} 13... Rg7 {[%clk 0:03:00]} 14. Nf5 {[%clk 0:02:13.8]}
14... Bxf5 {[%clk 0:03:00.3]} 15. exf5 {[%clk 0:02:14.7]} 15... Ne7 {[%clk
0:03:00.6]} 16. Qf3 {[%clk 0:01:51.4]} 16... g4 {[%clk 0:02:58.4]} 17. hxg4
{[%clk 0:01:40.5]} 17... hxg4 {[%clk 0:02:58.5]} 18. Qe4 {[%clk 0:01:41]} 18...
Rgh7 {[%clk 0:02:50.6]} 19. g3 {[%clk 0:01:22.1]} 19... Qd4 {[%clk 0:02:47]} 20.
Qg2 {[%clk 0:00:12.5]} 20... Rh1+ {[%clk 0:02:42.9]} 21. Qxh1 {[%clk 0:00:12.3]}
21... Rxh1+ {[%clk 0:02:43.8]} 22. Kxh1 {[%clk 0:00:13.2]} 22... Qxa1 {[%clk
0:02:44.1]} 23. Nc4 {[%clk 0:00:14.1]} 23... Qd4 {[%clk 0:02:38.2]} 24. Be3
{[%clk 0:00:13.2]} 24... Qd5+ {[%clk 0:02:37.9]} 25. Kg1 {[%clk 0:00:12.6]}
25... Nxf5 {[%clk 0:02:38.2]} 26. Nxb6 {[%clk 0:00:11.8]} 26... Qd8 {[%clk
0:02:37.4]} 27. Nc4 {[%clk 0:00:10.4]} 27... Nxe3 {[%clk 0:02:37.6]} 28. fxe3
{[%clk 0:00:10.7]} 28... Bh6 {[%clk 0:02:36.1]} 29. Kg2 {[%clk 0:00:07.4]} 29...
Qd5+ {[%clk 0:02:35.5]} 30. e4 {[%clk 0:00:07.8]} 30... Qd8 {[%clk 0:02:22.9]}
31. Rh1 {[%clk 0:00:06.4]} 31... Bg7 {[%clk 0:02:23]} 32. Rh7 {[%clk 0:00:05.1]}
32... Kf7 {[%clk 0:02:22.2]} 33. Rh4 {[%clk 0:00:03.6]} 33... Qd4 {[%clk
0:02:15.1]} 34. Rxg4 {[%clk 0:00:02.6]} 34... Qc3 {[%clk 0:02:15.2]} 0-1

[Event "*** Titled Tuesday Blitz"]
[Site "Chess.com"]
[Date "2020.10.20"]
[Round "2"]
[White "jacky72"]
[Black "exoticprincess"]
[Result "0-1"]
[WhiteElo "2556"]
[BlackElo "2864"]
[TimeControl "180+1"]
[EndTime "10:16:06 PDT"]
[Termination "exoticprincess won by checkmate"]

1. d4 {[%clk 0:03:00.9]} 1... Nf6 {[%clk 0:02:59.4]} 2. c4 {[%clk 0:03:01.1]}
2... c5 {[%clk 0:02:59.4]} 3. d5 {[%clk 0:03:01.3]} 3... e6 {[%clk 0:02:58.8]}
4. Nc3 {[%clk 0:03:01.8]} 4... exd5 {[%clk 0:02:58.9]} 5. cxd5 {[%clk
0:03:02.7]} 5... g6 {[%clk 0:02:59.5]} 6. Nf3 {[%clk 0:03:03.3]} 6... Bg7 {[%clk
0:02:59]} 7. Nd2 {[%clk 0:03:04.2]} 7... O-O {[%clk 0:02:58.6]} 8. e4 {[%clk
0:03:04.8]} 8... d6 {[%clk 0:02:58.8]} 9. Be2 {[%clk 0:03:05]} 9... Re8 {[%clk
0:02:59.2]} 10. O-O {[%clk 0:03:05.5]} 10... Nbd7 {[%clk 0:02:56.5]} 11. h3
{[%clk 0:03:02.7]} 11... a6 {[%clk 0:02:55.4]} 12. a4 {[%clk 0:03:03]} 12... Rb8
{[%clk 0:02:55.4]} 13. Qc2 {[%clk 0:02:56.8]} 13... h5 {[%clk 0:02:40.2]} 14.
Re1 {[%clk 0:02:54.5]} 14... h4 {[%clk 0:02:39.4]} 15. Bf1 {[%clk 0:02:52.6]}
15... Nh5 {[%clk 0:02:36.8]} 16. Nc4 {[%clk 0:02:50.2]} 16... Ne5 {[%clk
0:02:36.3]} 17. f4 {[%clk 0:02:45]} 17... Nxc4 {[%clk 0:02:34.8]} 18. Bxc4
{[%clk 0:02:45.9]} 18... Bd7 {[%clk 0:02:31.3]} 19. Bd3 {[%clk 0:02:39]} 19...
b5 {[%clk 0:02:28.9]} 20. axb5 {[%clk 0:02:39.9]} 20... axb5 {[%clk 0:02:29.8]}
21. e5 {[%clk 0:02:38.8]} 21... dxe5 {[%clk 0:02:20.6]} 22. f5 {[%clk
0:02:34.3]} 22... e4 {[%clk 0:02:16.4]} 23. Nxe4 {[%clk 0:02:08.6]} 23... Bxf5
{[%clk 0:02:03.5]} 24. Be3 {[%clk 0:01:46.6]} 24... c4 {[%clk 0:02:01.4]} 25.
Nf6+ {[%clk 0:01:19.8]} 25... Qxf6 {[%clk 0:01:57.6]} 26. Bxf5 {[%clk
0:01:20.3]} 26... Qxf5 {[%clk 0:01:57.5]} 27. Qd2 {[%clk 0:01:20.9]} 27... Ng3
{[%clk 0:01:50.6]} 28. d6 {[%clk 0:01:19.4]} 28... Ne4 {[%clk 0:01:49.5]} 29.
Qd1 {[%clk 0:01:18.7]} 29... Rbd8 {[%clk 0:01:49]} 30. Ra6 {[%clk 0:01:17.3]}
30... Bxb2 {[%clk 0:01:40.4]} 31. Rf1 {[%clk 0:01:16.8]} 31... Qe6 {[%clk
0:01:37.8]} 32. Bf4 {[%clk 0:01:14.9]} 32... Be5 {[%clk 0:01:32.5]} 33. Bxe5
{[%clk 0:01:06.1]} 33... Qxe5 {[%clk 0:01:33.4]} 34. Qf3 {[%clk 0:01:06.6]}
34... Nxd6 {[%clk 0:01:24.2]} 35. Kh1 {[%clk 0:01:06.1]} 35... Nf5 {[%clk
0:01:23.3]} 36. Qg4 {[%clk 0:01:03.5]} 36... Ng3+ {[%clk 0:01:22.5]} 37. Kg1
{[%clk 0:01:04.1]} 37... Qe3+ {[%clk 0:01:21.1]} 38. Rf2 {[%clk 0:01:02.9]}
38... Qe1+ {[%clk 0:01:20.7]} 39. Kh2 {[%clk 0:01:03.5]} 39... Qh1# {[%clk
0:01:20.2]} 0-1

[Event "*** Titled Tuesday Blitz"]
[Site "Chess.com"]
[Date "2020.10.20"]
[Round "2"]
[White "doons21"]
[Black "Supernotar"]
[Result "1-0"]
[WhiteElo "2558"]
[BlackElo "2842"]
[TimeControl "180+1"]
[EndTime "10:16:10 PDT"]
[Termination "doons21 won by resignation"]

1. e4 {[%clk 0:02:58.8]} 1... c6 {[%clk 0:02:54.3]} 2. d3 {[%clk 0:02:54.3]}
2... d5 {[%clk 0:02:54.1]} 3. Nd2 {[%clk 0:02:54.9]} 3... e5 {[%clk 0:02:54]} 4.
Ngf3 {[%clk 0:02:55]} 4... Bd6 {[%clk 0:02:53.5]} 5. g3 {[%clk 0:02:50.4]} 5...
Nf6 {[%clk 0:02:53.3]} 6. Bg2 {[%clk 0:02:50.9]} 6... O-O {[%clk 0:02:52.9]} 7.
O-O {[%clk 0:02:51.4]} 7... Re8 {[%clk 0:02:52.4]} 8. Re1 {[%clk 0:02:51.9]}
8... Qc7 {[%clk 0:02:51.5]} 9. a4 {[%clk 0:02:48.7]} 9... b6 {[%clk 0:02:51.1]}
10. h3 {[%clk 0:02:48.6]} 10... a5 {[%clk 0:02:50.5]} 11. Nh4 {[%clk 0:02:48.6]}
11... Nbd7 {[%clk 0:02:49.8]} 12. Nf5 {[%clk 0:02:45.7]} 12... Bf8 {[%clk
0:02:49.4]} 13. Nf1 {[%clk 0:02:44.8]} 13... g6 {[%clk 0:02:49.3]} 14. Nh6+
{[%clk 0:02:36.9]} 14... Kg7 {[%clk 0:02:49.4]} 15. g4 {[%clk 0:02:10.1]} 15...
Ba6 {[%clk 0:02:45.7]} 16. Ng3 {[%clk 0:02:09.8]} 16... Rad8 {[%clk 0:02:44.3]}
17. Bg5 {[%clk 0:02:04.6]} 17... Be7 {[%clk 0:02:39.4]} 18. Qf3 {[%clk
0:02:00.8]} 18... dxe4 {[%clk 0:02:35.7]} 19. dxe4 {[%clk 0:01:48]} 19... Rf8
{[%clk 0:02:30.2]} 20. Nhf5+ {[%clk 0:01:36.9]} 20... gxf5 {[%clk 0:02:29.6]}
21. Nxf5+ {[%clk 0:01:37]} 21... Kh8 {[%clk 0:02:28.4]} 22. Nxe7 {[%clk
0:01:36.3]} 22... Qd6 {[%clk 0:02:26.5]} 23. Rad1 {[%clk 0:01:15.8]} 23... Qe6
{[%clk 0:02:26.1]} 24. Nf5 {[%clk 0:01:09.3]} 24... Rg8 {[%clk 0:02:21.5]} 25.
h4 {[%clk 0:01:02]} 25... Rg6 {[%clk 0:02:04.4]} 26. Rd6 {[%clk 0:01:01.3]}
26... Qe8 {[%clk 0:02:03.5]} 27. Red1 {[%clk 0:00:57.4]} 27... Rc8 {[%clk
0:01:59.4]} 28. Nh6 {[%clk 0:00:53.4]} 28... Kg7 {[%clk 0:01:57]} 29. Nf5+
{[%clk 0:00:48.6]} 29... Kh8 {[%clk 0:01:56.2]} 30. Bxf6+ {[%clk 0:00:46.9]}
30... Nxf6 {[%clk 0:01:54.6]} 31. g5 {[%clk 0:00:45.9]} 31... Ng8 {[%clk
0:01:47.5]} 32. Rxg6 {[%clk 0:00:46]} 32... hxg6 {[%clk 0:01:45.5]} 33. Nd6
{[%clk 0:00:46.5]} 33... Qe6 {[%clk 0:01:41.1]} 34. Bh3 {[%clk 0:00:46.3]} 34...
f5 {[%clk 0:01:38.4]} 35. gxf6 {[%clk 0:00:44.6]} 1-0

[Event "*** Titled Tuesday Blitz"]
[Site "Chess.com"]
[Date "2020.10.20"]
[Round "2"]
[White "anon481216"]
[Black "northridgehawk"]
[Result "1-0"]
[WhiteElo "2425"]
[BlackElo "2200"]
[TimeControl "180+1"]
[EndTime "10:16:15 PDT"]
[Termination "anon481216 won by resignation"]

1. d4 {[%clk 0:03:00.9]} 1... f5 {[%clk 0:02:58.8]} 2. e4 {[%clk 0:03:00.2]}
2... fxe4 {[%clk 0:02:56.7]} 3. Nc3 {[%clk 0:02:58.2]} 3... Nf6 {[%clk
0:02:56.9]} 4. Bg5 {[%clk 0:02:55.4]} 4... g6 {[%clk 0:02:56.7]} 5. f3 {[%clk
0:02:52.1]} 5... exf3 {[%clk 0:02:43.3]} 6. Nxf3 {[%clk 0:02:49.5]} 6... Bg7
{[%clk 0:02:43.8]} 7. Bd3 {[%clk 0:02:45.6]} 7... O-O {[%clk 0:02:43]} 8. h4
{[%clk 0:02:42.7]} 8... d5 {[%clk 0:02:38.5]} 9. Qd2 {[%clk 0:02:37.8]} 9... Nc6
{[%clk 0:02:33.3]} 10. Bxf6 {[%clk 0:02:24.8]} 10... exf6 {[%clk 0:02:30.7]} 11.
h5 {[%clk 0:02:24]} 11... Re8+ {[%clk 0:02:24]} 12. Kf2 {[%clk 0:02:21.1]} 12...
f5 {[%clk 0:02:17.9]} 13. Ne2 {[%clk 0:02:15.2]} 13... Be6 {[%clk 0:02:01.4]}
14. c3 {[%clk 0:02:13.8]} 14... Bf7 {[%clk 0:02:01]} 15. hxg6 {[%clk 0:02:12.4]}
15... hxg6 {[%clk 0:02:01.9]} 16. Rh3 {[%clk 0:02:08.8]} 16... Qf6 {[%clk
0:01:44.9]} 17. Rah1 {[%clk 0:02:06.1]} 17... Re4 {[%clk 0:01:40.7]} 18. Ng5
{[%clk 0:01:56.2]} 18... Rae8 {[%clk 0:01:35.7]} 19. Bxe4 {[%clk 0:01:50.3]}
19... fxe4+ {[%clk 0:01:35.1]} 20. Kg1 {[%clk 0:01:48.2]} 20... e3 {[%clk
0:01:34.9]} 21. Rxe3 {[%clk 0:01:45.4]} 21... Rxe3 {[%clk 0:01:30.1]} 22. Qxe3
{[%clk 0:01:45.3]} 22... Ne7 {[%clk 0:01:27.3]} 23. Ng3 {[%clk 0:01:37]} 23...
Nf5 {[%clk 0:01:15.9]} 24. Nxf5 {[%clk 0:01:36.7]} 24... Qxf5 {[%clk 0:01:16.8]}
25. Rh3 {[%clk 0:01:33.1]} 25... Qb1+ {[%clk 0:00:55.1]} 26. Kh2 {[%clk
0:01:32.7]} 26... Bf8 {[%clk 0:00:49.5]} 27. Nxf7 {[%clk 0:01:21.7]} 27... Kxf7
{[%clk 0:00:49]} 28. Rf3+ {[%clk 0:01:20]} 28... Kg7 {[%clk 0:00:45.5]} 29. Qe5+
{[%clk 0:01:19.4]} 29... Kg8 {[%clk 0:00:40.2]} 30. Qe6+ {[%clk 0:01:19.4]}
30... Kg7 {[%clk 0:00:39.6]} 31. Qf7+ {[%clk 0:01:18.1]} 31... Kh6 {[%clk
0:00:39.2]} 32. Qxf8+ {[%clk 0:01:17.7]} 32... Kg5 {[%clk 0:00:38.6]} 33. Qf6+
{[%clk 0:01:17.7]} 1-0

[Event "*** Titled Tuesday Blitz"]
[Site "Chess.com"]
[Date "2020.10.20"]
[Round "2"]
[White "Guenplen"]
[Black "PhileKhoob"]
[Result "1-0"]
[WhiteElo "2854"]
[BlackElo "2540"]
[TimeControl "180+1"]
[EndTime "10:16:30 PDT"]
[Termination "Guenplen won by resignation"]

1. d4 {[%clk 0:03:00.9]} 1... Nf6 {[%clk 0:02:59.6]} 2. Bf4 {[%clk 0:02:59.2]}
2... g6 {[%clk 0:02:59.7]} 3. e3 {[%clk 0:02:56.7]} 3... Bg7 {[%clk 0:02:59.9]}
4. h3 {[%clk 0:02:56.5]} 4... O-O {[%clk 0:03:00.4]} 5. c3 {[%clk 0:02:57]} 5...
d5 {[%clk 0:03:01]} 6. Nf3 {[%clk 0:02:56.9]} 6... c5 {[%clk 0:03:01.5]} 7. Nbd2
{[%clk 0:02:54.9]} 7... Nc6 {[%clk 0:03:01.9]} 8. dxc5 {[%clk 0:02:55.2]} 8...
Re8 {[%clk 0:02:59.8]} 9. Bb5 {[%clk 0:02:47]} 9... a5 {[%clk 0:02:49.8]} 10. a4
{[%clk 0:02:40.8]} 10... e5 {[%clk 0:02:43.7]} 11. Bxc6 {[%clk 0:02:30]} 11...
exf4 {[%clk 0:02:42.7]} 12. Bxe8 {[%clk 0:02:29.3]} 12... fxe3 {[%clk
0:02:43.2]} 13. Bxf7+ {[%clk 0:02:25.1]} 13... Kxf7 {[%clk 0:02:43.6]} 14. fxe3
{[%clk 0:02:26]} 14... Qe7 {[%clk 0:02:38.7]} 15. Qe2 {[%clk 0:02:23.5]} 15...
Qxc5 {[%clk 0:02:36.8]} 16. O-O {[%clk 0:02:20.7]} 16... Bd7 {[%clk 0:02:35.6]}
17. Ne5+ {[%clk 0:02:18.9]} 17... Ke7 {[%clk 0:02:34.4]} 18. Nxd7 {[%clk
0:02:17]} 18... Kxd7 {[%clk 0:02:34.8]} 19. Nb3 {[%clk 0:02:14.5]} 19... Qc4
{[%clk 0:02:32.2]} 20. Qxc4 {[%clk 0:02:11.9]} 20... dxc4 {[%clk 0:02:33.1]} 21.
Rad1+ {[%clk 0:02:12.3]} 21... Kc7 {[%clk 0:02:30.7]} 22. Nd4 {[%clk 0:02:12]}
22... Re8 {[%clk 0:02:30.1]} 23. Nb5+ {[%clk 0:02:12]} 23... Kb8 {[%clk
0:02:29.3]} 24. Nd6 {[%clk 0:02:07.9]} 24... Re6 {[%clk 0:02:25.9]} 25. Nxc4
{[%clk 0:02:05.6]} 25... Bh6 {[%clk 0:02:26.2]} 26. Rf3 {[%clk 0:01:50.6]} 26...
Ne4 {[%clk 0:02:10.3]} 27. Rd7 {[%clk 0:01:40.8]} 27... Ng5 {[%clk 0:02:05]} 28.
Rf4 {[%clk 0:01:33.5]} 28... Rc6 {[%clk 0:01:45.8]} 29. Nxa5 {[%clk 0:01:30.3]}
29... Ra6 {[%clk 0:01:32.3]} 30. b4 {[%clk 0:01:18]} 30... Re6 {[%clk
0:01:14.6]} 31. Rxb7+ {[%clk 0:01:16]} 31... Kc8 {[%clk 0:01:12.8]} 32. Rc4+
{[%clk 0:01:15.1]} 32... Kd8 {[%clk 0:01:13.1]} 33. Rcc7 {[%clk 0:00:51.7]}
33... Ne4 {[%clk 0:01:10.2]} 34. Nc6+ {[%clk 0:00:49.1]} 1-0